fUSD/lending_fUSD_20250811
["ID","MTS","AMOUNT","RATE_DAILY","PERIOD"]
[378643603,1754938246315,-150.0,0.00016623,2]
[378643604,1754938246326,-150.0,0.00016623,2]
[378643605,1754938246336,-349.40725755,0.00016633,2]
[378643606,1754938246351,-7.59274245,0.00016633,2]
[378643607,1754938246365,-953.0,0.00016633,2]
[378643608,1754938246375,-211.73953792,0.00016659,2]
[378643609,1754938246384,-45.74341643,0.00016659,2]
[378643610,1754938246396,-412.12739344,0.00016659,2]
[378643611,1754938246405,-842.86497659,0.00016659,2]
[378643612,1754938246414,-116.43210507,0.00016669,2]
[378643613,1754938246427,-33.56789493,0.00016669,2]
[378643614,1754938246435,-605.70873085,0.00016687,2]
[378643615,1754938246457,-188.29126915,0.00016687,2]
[378643616,1754938246467,-150.0,0.00016687,2]
[378643617,1754938246476,-172.82694197,0.00016694,2]
[378643622,1754938305614,513.0,0.00015503,2]
[378643624,1754938311610,9560.81152119,0.00021,30]
[378643625,1754938359413,551.18,0.0001572,2]
[378643626,1754938374558,197.31,0.0001572,2]
[378643627,1754938384393,170.0,0.00015714,7]
[378643629,1754938400539,219.63,0.00013699,2]
[378643630,1754938414572,-432.0,0.00016238,2]
[378643633,1754938437760,580.87,0.00015696,2]
[378643634,1754938515424,170.48,0.00015639,2]
[378643635,1754938521985,5611.61,0.00015614,2]
[378643636,1754938526230,150.0,9.7e-05,2]
[378643637,1754938526633,150.0,0.0001088,2]
[378643638,1754938627943,150.0,0.00015586,2]
[378643640,1754938728798,1000.0,0.00015205,2]
[378643641,1754938815113,197.38301483,0.00015129,2]
[378643643,1754938865263,250.0,0.00015515,2]
[378643644,1754938875735,509.0,0.00015215,2]
[378643645,1754938890352,22112.8,0.00015675,2]
[378643648,1754939087373,166.06,0.00015494,2]
[378643650,1754939153916,1012.12,0.00015444,2]
[378643651,1754939177982,174.44,0.00015936,2]
[378643652,1754939333204,1000.0,0.00015497,2]
[378643653,1754939338152,170.0,0.0001541,7]
[378643654,1754939429581,231.04,0.00015413,2]
[378643660,1754939431584,-509.0,0.00016006,2]
[378643661,1754939431595,-300.0,0.00016033,2]
[378643662,1754939431606,-300.0,0.00016033,2]
[378643663,1754939431619,-361.29973527,0.00016061,2]
[378643664,1754939431631,-191.17331213,0.00016149,2]
[378643665,1754939431642,-81.00734194,0.00016238,2]
[378643666,1754939431654,-300.0,0.00016248,2]
[378643667,1754939431664,-300.0,0.00016248,2]
[378643668,1754939431675,-1165.11873466,0.00016248,2]
[378643669,1754939431723,-34.88126534,0.00016248,2]
[378643670,1754939431734,-150.0,0.00016249,2]
[378643671,1754939431746,-150.0,0.00016249,2]
[378643672,1754939431756,-115.11873466,0.00016249,2]
[378643673,1754939431769,-34.88126534,0.00016249,2]
[378643674,1754939431779,-150.0,0.00016249,2]
[378643675,1754939431789,-150.0,0.00016249,2]
[378643676,1754939431800,-150.0,0.00016249,2]
[378643677,1754939431810,-150.0,0.00016249,2]
[378643678,1754939431820,-150.0,0.00016249,2]
[378643679,1754939431830,-150.0,0.00016249,2]
[378643680,1754939431840,-150.0,0.00016249,2]
[378643681,1754939431850,-641.0,0.00016289,2]
[378643682,1754939431862,-231.28369723,0.00016328,2]
[378643683,1754939431874,-1197.56815001,0.00016328,2]
[378643684,1754939431886,-2407.26381431,0.00016338,2]
[378643685,1754939431895,-1000.0,0.00016338,2]
[378643686,1754939431906,-513.00734194,0.00016338,2]
[378643687,1754939431917,-5000.0,0.00016338,2]
[378643688,1754939431927,-150.0,0.00016356,2]
[378643689,1754939431938,-150.0,0.00016362,2]
[378643690,1754939431948,-500.0,0.00016384,2]
[378643692,1754939431960,-1432.5587021,0.000164,2]
[378643694,1754939431971,-1432.55870195,0.000164,2]
[378643696,1754939431985,-1432.55870195,0.000164,2]
[378643698,1754939431997,-550.0,0.00016405,2]
[378643700,1754939432007,-600.0,0.00016406,2]
[378643702,1754939432017,-600.0,0.00016406,2]
[378643704,1754939432027,-600.0,0.00016406,2]
[378643706,1754939432037,-72.50807768,0.00016406,2]
[378643710,1754939432066,-527.49192232,0.00016406,2]
[378643712,1754939432076,-600.0,0.00016406,2]
[378643714,1754939432089,-248.76,0.00016406,2]
[378643715,1754939432099,-170.48,0.00016421,2]
[378643716,1754939432110,-75.75677768,0.00016426,2]
[378643717,1754939432129,-299.37224904,0.00016426,2]
[378643718,1754939432143,-695.36613129,0.00016426,2]
[378643719,1754939437391,-465.19786736,0.00016247,2]
[378643720,1754939437401,-317.77402395,0.00016426,2]
[378643721,1754939437414,-44.28951999,0.00016426,2]
[378643722,1754939437423,-346.92554585,0.00016428,2]
[378643723,1754939437433,-500.0,0.00016428,2]
[378643724,1754939437443,-160.0,0.00016428,2]
[378643725,1754939437452,-204.01,0.00016428,2]
[378643726,1754939437463,-153.77809679,0.00016428,2]
[378643727,1754939437478,-641.0,0.00016434,2]
[378643728,1754939437490,-400.0,0.00016438,2]
[378643729,1754939437499,-400.0,0.00016438,2]
[378643730,1754939437509,-400.0,0.00016438,2]
[378643731,1754939437518,-400.0,0.00016438,2]
[378643732,1754939437528,-400.0,0.00016438,2]
[378643733,1754939437537,-400.0,0.00016438,2]
[378643734,1754939437547,-400.0,0.00016438,2]
[378643735,1754939437557,-420.39,0.00016438,2]
[378643736,1754939437566,-400.0,0.00016438,2]
[378643737,1754939437576,-400.0,0.00016438,2]
[378643738,1754939437585,-400.0,0.00016438,2]
[378643739,1754939437595,-400.0,0.00016438,2]
[378643740,1754939437604,-494.20608784,0.00016438,2]
[378643741,1754939437614,-400.0,0.00016438,2]
[378643742,1754939437624,-275.74591011,0.00016438,2]
[378643743,1754939437647,-124.25408989,0.00016438,2]
[378643744,1754939437656,-400.0,0.00016438,2]
[378643745,1754939437667,-400.0,0.00016438,2]
[378643746,1754939437676,-400.0,0.00016438,2]
[378643747,1754939437686,-400.0,0.00016438,2]
[378643748,1754939437695,-400.0,0.00016438,2]
[378643749,1754939437704,-400.0,0.00016438,2]
[378643750,1754939437714,-400.0,0.00016438,2]
[378643751,1754939437724,-426.97,0.00016438,2]
[378643752,1754939437734,-400.0,0.00016438,2]
[378643753,1754939437745,-400.0,0.00016438,2]
[378643754,1754939437755,-400.0,0.00016438,2]
[378643755,1754939437765,-400.0,0.00016438,2]
[378643756,1754939437775,-400.0,0.00016438,2]
[378643757,1754939437784,-400.0,0.00016438,2]
[378643758,1754939437794,-400.0,0.00016438,2]
[378643759,1754939437803,-443.03,0.00016438,2]
[378643760,1754939437812,-400.0,0.00016438,2]
[378643761,1754939437822,-462.77,0.00016438,2]
[378643762,1754939437832,-400.0,0.00016438,2]
[378643763,1754939437841,-400.0,0.00016438,2]
[378643764,1754939437850,-400.0,0.00016438,2]
[378643765,1754939437860,-400.0,0.00016438,2]
[378643766,1754939437870,-400.0,0.00016438,2]
[378643767,1754939437880,-499.00501966,0.00016438,2]
[378643768,1754939437891,-2052.13,0.00016438,2]
[378643769,1754939437900,-400.0,0.00016438,2]
[378643770,1754939437910,-400.0,0.00016438,2]
[378643771,1754939437920,-400.0,0.00016438,2]
[378643772,1754939437931,-300.0,0.00016438,2]
[378643773,1754939437941,-400.0,0.00016438,2]
[378643774,1754939437951,-182.35952876,0.00016438,2]
[378643775,1754939437960,-577.32,0.00016438,2]
[378643776,1754939437970,-400.0,0.00016438,2]
[378643777,1754939437979,-400.0,0.00016438,2]
[378643778,1754939437989,-400.0,0.00016438,2]
[378643779,1754939437998,-400.0,0.00016438,2]
[378643780,1754939438008,-557.9,0.00016438,2]
[378643781,1754939438018,-400.0,0.00016438,2]
[378643782,1754939438028,-1000.0,0.00016438,2]
[378643783,1754939438040,-400.0,0.00016438,2]
[378643784,1754939438049,-400.0,0.00016438,2]
[378643785,1754939438059,-400.0,0.00016438,2]
[378643786,1754939438070,-785.18,0.00016438,2]
[378643787,1754939438082,-400.0,0.00016438,2]
[378643788,1754939438093,-400.0,0.00016438,2]
[378643789,1754939438103,-400.0,0.00016438,2]
[378643790,1754939438113,-197.78762229,0.00016438,2]
[378643791,1754939438138,-202.21237771,0.00016438,2]
[378643792,1754939438147,-400.0,0.00016438,2]
[378643793,1754939438157,-286.69962229,0.00016438,2]
[378643794,1754939438169,-113.30037771,0.00016438,2]
[378643795,1754939438179,-400.0,0.00016438,2]
[378643796,1754939438188,-400.0,0.00016438,2]
[378643797,1754939438198,-946.63,0.00016438,2]
[378643798,1754939438207,-272.48123669,0.00016438,2]
[378643799,1754939438270,-127.51876331,0.00016438,2]
[378643800,1754939438280,-400.0,0.00016438,2]
[378643801,1754939438289,-400.0,0.00016438,2]
[378643802,1754939438298,-770.5,0.00016438,2]
[378643803,1754939438308,-400.0,0.00016438,2]
[378643804,1754939438318,-400.0,0.00016438,2]
[378643805,1754939438327,-400.0,0.00016438,2]
[378643806,1754939438336,-752.11772068,0.00016438,2]
[378643807,1754939438395,-322.14227932,0.00016438,2]
[378643808,1754939438404,-95.7490557,0.00016438,2]
[378643809,1754939438416,-375.2609443,0.00016438,2]
[378643810,1754939438426,-408.35,0.00016438,2]
[378643811,1754939438437,-400.0,0.00016438,2]
[378643812,1754939438447,-400.0,0.00016438,2]
[378643813,1754939438457,-494.67,0.00016438,2]
[378643814,1754939438467,-400.0,0.00016438,2]
[378643815,1754939438476,-400.0,0.00016438,2]
[378643816,1754939438486,-400.0,0.00016438,2]
[378643817,1754939438497,-400.0,0.00016438,2]
[378643818,1754939438507,-1149.91,0.00016438,2]
[378643819,1754939438516,-400.0,0.00016438,2]
[378643820,1754939438527,-400.0,0.00016438,2]
[378643821,1754939438536,-400.0,0.00016438,2]
[378643822,1754939438545,-800.04,0.00016438,2]
[378643823,1754939438555,-400.0,0.00016438,2]
[378643824,1754939438564,-400.0,0.00016438,2]
[378643825,1754939438574,-400.0,0.00016438,2]
[378643826,1754939438583,-400.0,0.00016438,2]
[378643827,1754939438593,-502.47,0.00016438,2]
[378643828,1754939438603,-400.0,0.00016438,2]
[378643829,1754939438612,-400.0,0.00016438,2]
[378643830,1754939438622,-656.35,0.00016438,2]
[378643831,1754939438631,-400.0,0.00016438,2]
[378643832,1754939438641,-400.0,0.00016438,2]
[378643833,1754939438651,-480.52,0.00016438,2]
[378643834,1754939438661,-466.67,0.00016438,2]
[378643835,1754939438671,-1742.93557948,0.00016438,2]
[378643852,1754939439593,-330.91442052,0.00016438,2]
[378643854,1754939439603,-400.0,0.00016438,2]
[378643856,1754939439613,-400.0,0.00016438,2]
[378643857,1754939439622,-335.51731011,0.00016438,2]
[378643860,1754939439647,-64.48268989,0.00016438,2]
[378643862,1754939439656,-436.83,0.00016438,2]
[378643863,1754939439666,-400.0,0.00016438,2]
[378643865,1754939439676,-777.7,0.00016438,2]
[378643867,1754939439685,-424.2,0.00016438,2]
[378643869,1754939439696,-742.57,0.00016438,2]
[378643870,1754939439704,-231.77855429,0.00016438,2]
[378643872,1754939439715,-168.22144571,0.00016438,2]
[378643874,1754939439724,-99.44735436,0.00016438,2]
[378643876,1754939439745,-300.55264564,0.00016438,2]
[378643878,1754939439754,-400.0,0.00016438,2]
[378643879,1754939439763,-422.4,0.00016438,2]
[378643880,1754939439773,-400.0,0.00016438,2]
[378643881,1754939439782,-215.31583508,0.00016438,2]
[378643895,1754939442540,-184.68416492,0.00016438,2]
[378643896,1754939442550,-499.16,0.00016438,2]
[378643897,1754939442559,-400.0,0.00016438,2]
[378643898,1754939442569,-400.0,0.00016438,2]
[378643899,1754939442579,-400.0,0.00016438,2]
[378643900,1754939442588,-400.0,0.00016438,2]
[378643901,1754939442597,-400.0,0.00016438,2]
[378643902,1754939442607,-400.0,0.00016438,2]
[378643903,1754939442617,-654.85,0.00016438,2]
[378643904,1754939442626,-400.0,0.00016438,2]
[378643905,1754939442635,-1089.79,0.00016438,2]
[378643906,1754939442647,-400.0,0.00016438,2]
[378643907,1754939442657,-400.0,0.00016438,2]
[378643908,1754939442667,-1897.6,0.00016438,2]
[378643909,1754939442677,-400.0,0.00016438,2]
[378643910,1754939442686,-758.73,0.00016438,2]
[378643911,1754939442696,-400.0,0.00016438,2]
[378643912,1754939442706,-400.0,0.00016438,2]
[378643913,1754939442715,-400.0,0.00016438,2]
[378643914,1754939442724,-592.36,0.00016438,2]
[378643915,1754939442733,-400.0,0.00016438,2]
[378643916,1754939442742,-592.33,0.00016438,2]
[378643917,1754939442751,-400.0,0.00016438,2]
[378643918,1754939442761,-1111.72,0.00016438,2]
[378643919,1754939442770,-400.0,0.00016438,2]
[378643920,1754939442779,-443.4,0.00016438,2]
[378643921,1754939442788,-1986.38,0.00016438,2]
[378643922,1754939442797,-422.16,0.00016438,2]
[378643923,1754939442806,-513.89,0.00016438,2]
[378643924,1754939442815,-465.82,0.00016438,2]
[378643925,1754939442824,-400.0,0.00016438,2]
[378643926,1754939442834,-400.0,0.00016438,2]
[378643927,1754939442843,-907.53,0.00016438,2]
[378643928,1754939442853,-572.92,0.00016438,2]
[378643929,1754939442862,-851.43,0.00016438,2]
[378643930,1754939442871,-400.0,0.00016438,2]
[378643931,1754939442881,-887.22,0.00016438,2]
[378643932,1754939442891,-501.37,0.00016438,2]
[378643933,1754939442901,-668.96,0.00016438,2]
[378643934,1754939442910,-597.35,0.00016438,2]
[378643935,1754939442919,-413.98,0.00016438,2]
[378643936,1754939442929,-400.0,0.00016438,2]
[378643937,1754939442938,-400.0,0.00016438,2]
[378643938,1754939442949,-541.94,0.00016438,2]
[378643939,1754939442958,-400.93,0.00016438,2]
[378643940,1754939442968,-441.92,0.00016438,2]
[378643941,1754939442978,-400.0,0.00016438,2]
[378643942,1754939442988,-400.0,0.00016438,2]
[378643944,1754939442997,-409.45,0.00016438,2]
[378643946,1754939443006,-400.0,0.00016438,2]
[378643948,1754939443016,-716.77,0.00016438,2]
[378643950,1754939443025,-400.0,0.00016438,2]
[378643952,1754939443034,-175.98517595,0.00016438,2]
[378643954,1754939443044,-400.0,0.00016438,2]
[378643956,1754939443053,-400.0,0.00016438,2]
[378643958,1754939443063,-400.0,0.00016438,2]
[378643960,1754939443072,-400.0,0.00016438,2]
[378643962,1754939443081,-769.14,0.00016438,2]
[378643964,1754939443095,-400.0,0.00016438,2]
[378643966,1754939443104,-400.0,0.00016438,2]
[378643968,1754939443114,-400.0,0.00016438,2]
[378643970,1754939443123,-400.0,0.00016438,2]
[378643971,1754939443133,-408.33,0.00016438,2]
[378643972,1754939443142,-492.464176,0.00016438,2]
[378643973,1754939443151,-808.093347,0.00016438,2]
[378643974,1754939443159,-400.0,0.00016438,2]
[378643975,1754939443169,-400.0,0.00016438,2]
[378643976,1754939443178,-400.0,0.00016438,2]
[378643977,1754939443187,-400.0,0.00016438,2]
[378643978,1754939443196,-702.83,0.00016438,2]
[378643979,1754939443205,-954.22,0.00016438,2]
[378643980,1754939443214,-608.15,0.00016438,2]
[378643981,1754939443223,-400.0,0.00016438,2]
[378643982,1754939443232,-620.05,0.00016438,2]
[378643983,1754939443241,-573.65,0.00016438,2]
[378643984,1754939443250,-400.0,0.00016438,2]
[378643985,1754939443259,-400.0,0.00016438,2]
[378643986,1754939443268,-734.82,0.00016438,2]
[378643987,1754939443277,-856.995692,0.00016438,2]
[378643988,1754939443286,-400.0,0.00016438,2]
[378643989,1754939443296,-400.0,0.00016438,2]
[378643990,1754939443305,-400.0,0.00016438,2]
[378643991,1754939443314,-400.0,0.00016438,2]
[378643992,1754939443323,-400.0,0.00016438,2]
[378643993,1754939443332,-400.0,0.00016438,2]
[378643994,1754939443341,-429.8,0.00016438,2]
[378643995,1754939443350,-2992.82,0.00016438,2]
[378643996,1754939443360,-551.56,0.00016438,2]
[378643997,1754939443370,-158.062081,0.00016438,2]
[378643998,1754939443379,-400.0,0.00016438,2]
[378643999,1754939443388,-1698.06,0.00016438,2]
[378644000,1754939443399,-400.0,0.00016438,2]
[378644001,1754939443408,-400.0,0.00016438,2]
[378644002,1754939443417,-400.0,0.00016438,2]
[378644003,1754939443427,-342.8485198,0.00016438,2]
[378644004,1754939443436,-760.61,0.00016438,2]
[378644005,1754939443446,-558.32,0.00016438,2]
[378644006,1754939443455,-1137.91,0.00016438,2]
[378644007,1754939443464,-400.0,0.00016438,2]
[378644008,1754939443473,-931.41,0.00016438,2]
[378644009,1754939443482,-626.19,0.00016438,2]
[378644010,1754939443491,-400.0,0.00016438,2]
[378644011,1754939443500,-400.0,0.00016438,2]
[378644012,1754939443509,-959.44,0.00016438,2]
[378644013,1754939443518,-615.45,0.00016438,2]
[378644014,1754939443528,-554.91,0.00016438,2]
[378644015,1754939443537,-471.88,0.00016438,2]
[378644016,1754939443546,-400.0,0.00016438,2]
[378644017,1754939443555,-1733.37,0.00016438,2]
[378644018,1754939443565,-400.0,0.00016438,2]
[378644019,1754939443575,-569.47,0.00016438,2]
[378644020,1754939443584,-697.16,0.00016438,2]
[378644021,1754939443594,-633.89,0.00016438,2]
[378644022,1754939443603,-950.76,0.00016438,2]
[378644023,1754939443612,-614.37,0.00016438,2]
[378644024,1754939443621,-400.0,0.00016438,2]
[378644025,1754939443630,-400.0,0.00016438,2]
[378644026,1754939443639,-150.61881784,0.00016438,2]
[378644027,1754939443649,-921.33,0.00016438,2]
[378644028,1754939443658,-524.88,0.00016438,2]
[378644029,1754939443667,-400.0,0.00016438,2]
[378644030,1754939443676,-1257.25,0.00016438,2]
[378644031,1754939443685,-1035.13,0.00016438,2]
[378644032,1754939443694,-508.84,0.00016438,2]
[378644033,1754939443704,-657.57,0.00016438,2]
[378644034,1754939443713,-491.72,0.00016438,2]
[378644035,1754939443723,-789.72,0.00016438,2]
[378644036,1754939443732,-400.0,0.00016438,2]
[378644037,1754939443740,-527.06,0.00016438,2]
[378644038,1754939443750,-400.0,0.00016438,2]
[378644039,1754939443758,-809.25,0.00016438,2]
[378644040,1754939443767,-400.0,0.00016438,2]
[378644041,1754939443777,-400.0,0.00016438,2]
[378644042,1754939443785,-400.0,0.00016438,2]
[378644043,1754939443794,-678.42,0.00016438,2]
[378644044,1754939443803,-677.23,0.00016438,2]
[378644045,1754939443812,-400.0,0.00016438,2]
[378644046,1754939443822,-400.0,0.00016438,2]
[378644047,1754939443831,-400.0,0.00016438,2]
[378644048,1754939443839,-400.0,0.00016438,2]
[378644049,1754939443848,-400.0,0.00016438,2]
[378644050,1754939443857,-765.92,0.00016438,2]
[378644051,1754939443866,-1477.92,0.00016438,2]
[378644052,1754939443876,-1374.17,0.00016438,2]
[378644053,1754939443885,-724.47,0.00016438,2]
[378644054,1754939443894,-959.21,0.00016438,2]
[378644055,1754939443904,-1391.92,0.00016438,2]
[378644056,1754939443913,-400.0,0.00016438,2]
[378644057,1754939443922,-400.0,0.00016438,2]
[378644058,1754939443931,-718.57,0.00016438,2]
[378644059,1754939443940,-682.13,0.00016438,2]
[378644060,1754939443949,-547.86,0.00016438,2]
[378644061,1754939443958,-582.68,0.00016438,2]
[378644062,1754939443967,-1245.67,0.00016438,2]
[378644063,1754939443976,-3229.3,0.00016438,2]
[378644064,1754939443986,-400.0,0.00016438,2]
[378644065,1754939443995,-589.93,0.00016438,2]
[378644066,1754939444004,-674.18,0.00016438,2]
[378644067,1754939444014,-404.74,0.00016438,2]
[378644068,1754939444023,-400.0,0.00016438,2]
[378644069,1754939444032,-818.13,0.00016438,2]
[378644070,1754939444042,-582.79,0.00016438,2]
[378644071,1754939444051,-695.02,0.00016438,2]
[378644072,1754939444061,-2616.19,0.00016438,2]
[378644073,1754939444070,-400.0,0.00016438,2]
[378644074,1754939444079,-930.63,0.00016438,2]
[378644075,1754939444093,-633.24,0.00016438,2]
[378644076,1754939444102,-400.0,0.00016438,2]
[378644077,1754939444113,-400.0,0.00016438,2]
[378644078,1754939444123,-400.0,0.00016438,2]
[378644079,1754939444133,-603.07,0.00016438,2]
[378644080,1754939444141,-756.74,0.00016438,2]
[378644081,1754939444150,-700.81,0.00016438,2]
[378644082,1754939444160,-752.67,0.00016438,2]
[378644083,1754939444170,-400.0,0.00016438,2]
[378644084,1754939444179,-638.74,0.00016438,2]
[378644085,1754939444188,-651.45,0.00016438,2]
[378644086,1754939444197,-674.28,0.00016438,2]
[378644087,1754939444206,-498.34,0.00016438,2]
[378644088,1754939444215,-491.16,0.00016438,2]
[378644089,1754939444224,-1969.71,0.00016438,2]
[378644090,1754939444233,-1167.63,0.00016438,2]
[378644091,1754939444242,-534.35,0.00016438,2]
[378644092,1754939444251,-1345.57,0.00016438,2]
[378644093,1754939444259,-769.5,0.00016438,2]
[378644094,1754939444268,-400.0,0.00016438,2]
[378644095,1754939444277,-400.0,0.00016438,2]
[378644096,1754939444286,-2636.8,0.00016438,2]
[378644097,1754939444297,-730.03,0.00016438,2]
[378644098,1754939444306,-400.0,0.00016438,2]
[378644099,1754939444316,-400.0,0.00016438,2]
[378644100,1754939444325,-948.32,0.00016438,2]
[378644101,1754939444334,-400.0,0.00016438,2]
[378644102,1754939444343,-2381.53,0.00016438,2]
[378644103,1754939444352,-665.83,0.00016438,2]
[378644104,1754939444361,-1128.69,0.00016438,2]
[378644105,1754939444370,-5936.1,0.00016438,2]
[378644106,1754939444379,-400.0,0.00016438,2]
[378644107,1754939444388,-967.22,0.00016438,2]
[378644108,1754939444398,-500.0,0.00016438,2]
[378644109,1754939444407,-400.0,0.00016438,2]
[378644110,1754939444416,-600.0,0.00016438,2]
[378644111,1754939444425,-600.0,0.00016438,2]
[378644112,1754939444435,-600.0,0.00016438,2]
[378644113,1754939444443,-600.0,0.00016438,2]
[378644114,1754939444453,-600.0,0.00016438,2]
[378644115,1754939444462,-600.0,0.00016438,2]
[378644116,1754939444471,-600.0,0.00016438,2]
[378644117,1754939444481,-600.0,0.00016438,2]
[378644118,1754939444490,-156.30143435,0.00016438,2]
[378644119,1754939444499,-158.25922734,0.0001644,2]
[378644120,1754939444509,-150.0,0.0001645,2]
[378644121,1754939444519,-150.0,0.0001645,2]
[378644122,1754939444528,-1432.55870195,0.00016455,2]
[378644123,1754939444540,-150.0,0.00016462,2]
[378644124,1754939444553,-168.0,0.00016468,2]
[378644125,1754939444562,-541.29,0.00016474,2]
[378644126,1754939444571,-756.88,0.00016474,2]
[378644127,1754939444581,-400.0,0.00016474,2]
[378644128,1754939444590,-400.0,0.00016474,2]
[378644129,1754939444599,-400.0,0.00016474,2]
[378644130,1754939444608,-400.0,0.00016475,2]
[378644131,1754939444617,-400.0,0.00016475,2]
[378644132,1754939444627,-400.0,0.00016475,2]
[378644133,1754939444636,-400.0,0.00016475,2]
[378644134,1754939444646,-400.0,0.00016475,2]
[378644135,1754939444657,-429.77062074,0.00016475,2]
[378644136,1754939444666,-400.0,0.00016475,2]
[378644137,1754939444675,-400.0,0.00016475,2]
[378644138,1754939444683,-400.0,0.00016475,2]
[378644139,1754939444694,-400.0,0.00016475,2]
[378644140,1754939444704,-400.0,0.00016475,2]
[378644141,1754939444713,-400.0,0.00016475,2]
[378644142,1754939444722,-400.0,0.00016475,2]
[378644143,1754939444731,-400.0,0.00016475,2]
[378644144,1754939444740,-400.0,0.00016475,2]
[378644145,1754939444749,-400.0,0.00016475,2]
[378644146,1754939444758,-400.0,0.00016475,2]
[378644147,1754939444767,-400.0,0.00016475,2]
[378644148,1754939444776,-400.0,0.00016475,2]
[378644149,1754939444785,-400.0,0.00016475,2]
[378644150,1754939444794,-400.0,0.00016475,2]
[378644151,1754939444803,-400.0,0.00016475,2]
[378644152,1754939444812,-400.0,0.00016475,2]
[378644153,1754939444821,-188.21229434,0.00016475,2]
[378644154,1754939444831,-400.0,0.00016475,2]
[378644155,1754939444840,-459.23,0.00016475,2]
[378644156,1754939444849,-400.0,0.00016475,2]
[378644157,1754939444860,-422.54,0.00016475,2]
[378644158,1754939444872,-400.0,0.00016475,2]
[378644159,1754939444882,-400.0,0.00016475,2]
[378644160,1754939444892,-400.0,0.00016475,2]
[378644161,1754939444901,-400.0,0.00016475,2]
[378644162,1754939444911,-455.14,0.00016475,2]
[378644163,1754939444921,-489.16,0.00016475,2]
[378644164,1754939444931,-400.0,0.00016475,2]
[378644165,1754939444940,-400.0,0.00016475,2]
[378644166,1754939444949,-400.0,0.00016475,2]
[378644167,1754939444959,-405.02,0.00016475,2]
[378644168,1754939444968,-406.96,0.00016475,2]
[378644169,1754939444977,-400.0,0.00016475,2]
[378644170,1754939444987,-400.0,0.00016475,2]
[378644171,1754939444999,-400.0,0.00016475,2]
[378644172,1754939445010,-400.0,0.00016475,2]
[378644173,1754939445019,-400.0,0.00016475,2]
[378644174,1754939445029,-400.0,0.00016475,2]
[378644175,1754939445038,-316.4653849,0.00016475,2]
[378644176,1754939445047,-400.0,0.00016475,2]
[378644177,1754939445056,-400.0,0.00016475,2]
[378644178,1754939445065,-400.0,0.00016475,2]
[378644179,1754939445076,-400.0,0.00016475,2]
[378644180,1754939445088,-182.49301917,0.00016475,2]
[378644181,1754939445098,-400.0,0.00016475,2]
[378644182,1754939445107,-400.0,0.00016475,2]
[378644183,1754939445116,-400.0,0.00016475,2]
[378644184,1754939445126,-400.0,0.00016475,2]
[378644185,1754939445143,-400.0,0.00016475,2]
[378644186,1754939445153,-400.0,0.00016475,2]
[378644187,1754939445164,-400.0,0.00016475,2]
[378644188,1754939445174,-400.0,0.00016475,2]